[Event "EYCC O18-ch 2024"]
[Site "Prague"]
[Date "2024.08.31"]
[Round "9.1"]
[White "Razafindratsima, Timothe"]
[Black "Pasztor, Balazs"]
[Result "1-0"]
[ECO "B66"]
[WhiteElo "2457"]
[BlackElo "2402"]
[Annotator "RC"]
[PlyCount "145"]
[EventDate "2024.08.19"]
[EventType "swiss"]
[EventCountry "CZE"]
[SourceTitle "playchess.com"]
[Source "ChessBase"]
[SourceQuality "1"]
[TimeControl "5400+30"]

1. e4 {[%emt 0:00:02]} c5 {[%emt 0:00:07]} 2. Nf3 {[%emt 0:00:08]} d6 {[%emt 0:00:09]} 3. d4 {[%emt 0:00:13]} cxd4 {[%emt 0:00:10]} 4. Nxd4 {[%emt 0:00:17]} Nf6 {[%emt 0:00:13]} 5. Nc3 {[%emt 0:00:09]} Nc6 {[%emt 0:00:11]} 6. Bg5 {[%emt 0:00:26]} e6 {[%emt 0:00:10]} 7. Qd2 {[%emt 0:00:32]} a6 {[%emt 0:00:13]} 8. Nxc6 {[%emt 0:00:39]} bxc6 {[%emt 0:00:12]} 9. O-O-O {[%emt 0:00:15]} Be7 {[%emt 0:03:02]} 10. Bxf6 {[%emt 0:00:13]} gxf6 {[%emt 0:01:36]} 11. Bc4 {[%emt 0:00:10]} Bb7 {[%emt 0:00:56]} 12. Bb3 {[%emt 0:01:20]} Qc7 {[%emt 0:04:32]} 13. Rhe1 {[%emt 0:00:38]} O-O-O {[%emt 0:02:26]} 14. Qe2 {[%emt 0:01:30]} h5 {[%emt 0:19:35]} 15. f4 {[%emt 0:02:16]} Bf8 {[%emt 0:10:05]} 16. Kb1 {[%emt 0:12:59]} Kb8 {[%emt 0:01:59]} 17. Qf2 {[%emt 0:02:28]} d5 {[%emt 0:07:06]} 18. a3 {[%emt 0:09:18]} Bd6 {[%emt 0:03:23]} 19. g3 {[%emt 0:05:25]} h4 {[%emt 0:01:05]} 20. Ba2 {[%emt 0:15:06]} hxg3 {[%emt 0:00:41]} 21. hxg3 {[%emt 0:00:02]} Qa5 {[%emt 0:05:10]} 22. Qd4 {[%emt 0:09:35]} e5 {[%emt 0:05:41]} 23. Qd3 {[%emt 0:07:52]} exf4 {[%emt 0:03:26]} 24. exd5 {[%emt 0:04:34]} fxg3 {[%emt 0:01:37]} 25. Qf3 {[%emt 0:03:38]} Be5 {[%emt 0:11:07]} 26. dxc6 {[%emt 0:07:57]} Bxc3 {[%emt 0:00:47]} 27. Qxg3+ {[%emt 0:01:36]} Ka7 {[%emt 0:05:29]} 28. Qe3+ {[%emt 0:08:27]} Kb8 {[%emt 0:00:14]} 29. Qg3+ {[%emt 0:00:01]} Ka7 {[%emt 0:00:06]} 30. bxc3 {[%emt 0:01:43]} Qb6+ {[%emt 0:00:58]} 31. Bb3 {[%emt 0:00:21]} Qxc6 {[%emt 0:00:26]} 32. Kb2 {[%emt 0:00:16]} Ka8 {[%emt 0:02:28]} 33. Rxd8+ {[%emt 0:01:56]} Rxd8 {[%emt 0:00:01]} 34. Re7 {[%emt 0:00:06]} Qd6 {[%emt 0:01:56]} 35. Qxd6 {[%emt 0:01:34]} Rxd6 {[%emt 0:00:01]} 36. Rxf7 {[%emt 0:00:01]} Ka7 {[%emt 0:01:08]} 37. c4 {[%emt 0:00:13]} Rc6 {[%emt 0:01:24]} 38. Kc3 {[%emt 0:00:03]} Kb8 {[%emt 0:04:19]} 39. Ba4 {[%emt 0:00:08]} Re6 {[%emt 0:01:55]} 40. Kd4 {[%emt 0:00:04]} Bc8 {[%emt 0:01:47]} 41. c5 {[%emt 0:00:49]} Bb7 {[%emt 0:01:21]} 42. Bd7 {[%emt 0:00:47]} Re4+ {[%emt 0:00:12]} 43. Kd3 {[%emt 0:00:01]} Bd5 {[%emt 0:00:48]} 44. Rxf6 {[%emt 0:01:54]} Rh4 {[%emt 0:01:08]} 45. Rd6 {[%emt 0:01:48]} Be4+ {[%emt 0:00:27]} 46. Kc3 {[%emt 0:00:05]} Kc7 {[%emt 0:00:37]} 47. Ba4 {[%emt 0:01:48]} Rh3+ {[%emt 0:00:56]} 48. Kb2 {[%emt 0:00:44]} Rh5 {[%emt 0:00:35]} 49. Rxa6 {[%emt 0:00:42]} Rxc5 {[%emt 0:00:06]} 50. Rf6 {[%emt 0:00:07]} Rc4 {[%emt 0:00:45]} 51. Bb3 {[%emt 0:00:15]} Rc5 {[%emt 0:00:06]} 52. c4 {[%emt 0:00:07]} Ra5 {[%emt 0:00:24]} 53. a4 {[%emt 0:00:11]} Bc6 {[%emt 0:00:49]} 54. Ka3 {[%emt 0:00:06]} Ra8 {[%emt 0:00:12]} 55. c5 {[%emt 0:00:36]} Bd7 {[%emt 0:00:35]} 56. Kb4 {[%emt 0:00:52]} Rb8+ {[%emt 0:00:16]} 57. Kc3 {[%emt 0:00:01]} Rh8 {[%emt 0:00:59]} 58. a5 {[%emt 0:01:00]} Bb5 {[%emt 0:00:48]} 59. Kb4 {[%emt 0:00:21]} Be2 {[%emt 0:00:30]} 60. Rf7+ {[%emt 0:00:32]} Kc6 {[%emt 0:00:25]} 61. Ba4+ {[%emt 0:00:31]} Kd5 {[%emt 0:00:05]} 62. Rd7+ {[%emt 0:00:06]} Ke6 {[%emt 0:00:06]} 63. Rd6+ {[%emt 0:01:00]} Ke5 {[%emt 0:00:39]} 64. a6 {[%emt 0:01:22]} Rb8+ {[%emt 0:01:01]} 65. Ka5 {[%emt 0:00:08]} Rc8 {[%emt 0:00:08]} 66. a7 {[%emt 0:02:05]} Rxc5+ {[%emt 0:00:46]} 67. Kb6 {[%emt 0:00:01]} Rc8 {[%emt 0:00:08]} 68. Rc6 {[%emt 0:00:24]} Rf8 {[%emt 0:00:59]} 69. Rc5+ {[%emt 0:00:50]} Kd6 {[%emt 0:00:19]} 70. Bc6 {[%emt 0:00:19]} Bf3 {[%emt 0:00:37]} 71. Bxf3 {[%emt 0:00:14]} Rxf3 {[%emt 0:00:11]} 72. a8=Q {[%emt 0:00:11]} Rb3+ {[%emt 0:00:05]} 73. Rb5 {[%emt 0:00:05]} 1-0

[Event "EYCC O18-ch 2024"]
[Site "Prague"]
[Date "2024.08.31"]
[Round "9.2"]
[White "Davtyan, Arsen"]
[Black "Sahakyan, Aleks"]
[Result "1-0"]
[ECO "C02"]
[WhiteElo "2402"]
[BlackElo "2287"]
[Annotator "RC"]
[PlyCount "43"]
[EventDate "2024.08.19"]
[EventType "swiss"]
[EventCountry "CZE"]
[SourceTitle "playchess.com"]
[Source "ChessBase"]
[SourceQuality "1"]
[TimeControl "5400+30"]

1. e4 {[%emt 0:00:02]} e6 {[%emt 0:00:04]} 2. d4 {[%emt 0:00:09]} d5 {[%emt 0:00:05]} 3. e5 {[%emt 0:00:10]} c5 {[%emt 0:00:05]} 4. c3 {[%emt 0:00:04]} Nc6 {[%emt 0:00:04]} 5. Nf3 {[%emt 0:00:05]} Qb6 {[%emt 0:00:06]} 6. a3 {[%emt 0:00:08]} Nh6 {[%emt 0:00:05]} 7. Bd3 {[%emt 0:00:34]} cxd4 {[%emt 0:00:10]} 8. O-O {[%emt 0:00:08]} Bd7 {[%emt 0:00:03]} 9. b4 {[%emt 0:00:45]} Rc8 {[%emt 0:00:04]} 10. Ra2 {[%emt 0:04:41]} Be7 {[%emt 0:00:29]} 11. b5 {[%emt 0:02:31]} Na5 {[%emt 0:02:51]} 12. Bxh6 {[%emt 0:00:06]} gxh6 {[%emt 0:00:08]} 13. Nxd4 {[%emt 0:00:05]} Nc4 {[%emt 0:18:28]} 14. Re1 {[%emt 0:13:24]} Rg8 {[%emt 0:05:59]} 15. a4 {[%emt 0:16:36]} a5 {[%emt 0:11:48]} 16. Kh1 {[%emt 0:16:01]} Rg7 {[%emt 0:18:52]} 17. f4 {[%emt 0:16:28]} Bc5 {[%emt 0:01:37]} 18. Bf1 {[%emt 0:03:18]} Bf8 {[%emt 0:07:34]} 19. Rf2 {[%emt 0:06:33]} Kd8 {[%emt 0:07:10]} 20. Qf3 {[%emt 0:04:45]} Qc5 {[%emt 0:02:05]} 21. Rd1 {[%emt 0:07:07]} Nb2 {[%emt 0:03:12]} 22. Rxb2 {[%emt 0:00:12]} 1-0

[Event "EYCC O18-ch 2024"]
[Site "Prague"]
[Date "2024.08.31"]
[Round "9.3"]
[White "Macias Pino, Diego"]
[Black "Dehtiarov, Roman"]
[Result "1/2-1/2"]
[ECO "C92"]
[WhiteElo "2477"]
[BlackElo "2308"]
[Annotator "RC"]
[PlyCount "152"]
[EventDate "2024.08.19"]
[EventType "swiss"]
[EventCountry "CZE"]
[SourceTitle "playchess.com"]
[Source "ChessBase"]
[SourceQuality "1"]
[TimeControl "5400+30"]

1. e4 {[%emt 0:00:02]} e5 {[%emt 0:01:18]} 2. Nf3 {[%emt 0:00:06]} Nc6 {[%emt 0:00:08]} 3. Bb5 {[%emt 0:00:25]} a6 {[%emt 0:00:08]} 4. Ba4 {[%emt 0:00:04]} Nf6 {[%emt 0:00:08]} 5. O-O {[%emt 0:00:05]} Be7 {[%emt 0:00:08]} 6. Re1 {[%emt 0:00:05]} b5 {[%emt 0:00:06]} 7. Bb3 {[%emt 0:00:03]} d6 {[%emt 0:00:10]} 8. c3 {[%emt 0:00:04]} O-O {[%emt 0:00:10]} 9. h3 {[%emt 0:00:02]} Bb7 {[%emt 0:00:11]} 10. d4 {[%emt 0:00:07]} Re8 {[%emt 0:00:06]} 11. Ng5 {[%emt 0:00:36]} Rf8 {[%emt 0:00:08]} 12. Nf3 {[%emt 0:00:05]} Re8 {[%emt 0:00:07]} 13. Nbd2 {[%emt 0:00:45]} Bf8 {[%emt 0:00:08]} 14. Bc2 {[%emt 0:01:58]} h6 {[%emt 0:01:00]} 15. d5 {[%emt 0:04:17]} Nb8 {[%emt 0:00:26]} 16. b3 {[%emt 0:00:15]} Nbd7 {[%emt 0:03:35]} 17. Nf1 {[%emt 0:01:13]} c6 {[%emt 0:04:41]} 18. c4 {[%emt 0:00:08]} Rc8 {[%emt 0:10:23]} 19. Ng3 {[%emt 0:01:27]} g6 {[%emt 0:01:28]} 20. Bd2 {[%emt 0:14:57]} Bg7 {[%emt 0:05:26]} 21. Rc1 {[%emt 0:01:42]} Qe7 {[%emt 0:02:47]} 22. Bb4 {[%emt 0:06:19]} cxd5 {[%emt 0:10:05]} 23. cxd5 {[%emt 0:00:03]} Nc5 24. Ba5 {[%emt 0:01:09]} h5 {[%emt 0:10:56]} 25. Bd2 {[%emt 0:07:12]} Nh7 {[%emt 0:05:24]} 26. b4 {[%emt 0:06:25]} Nd7 27. Be3 {[%emt 0:00:11]} Qd8 {[%emt 0:08:23]} 28. Nd2 {[%emt 0:01:06]} Nb6 {[%emt 0:04:14]} 29. Bd3 {[%emt 0:03:47]} Na4 {[%emt 0:04:12]} 30. Nb3 {[%emt 0:01:15]} Qd7 {[%emt 0:02:23]} 31. Qd2 {[%emt 0:01:10]} Bf6 {[%emt 0:03:53]} 32. Na5 {[%emt 0:03:07]} Rxc1 {[%emt 0:00:42]} 33. Rxc1 {[%emt 0:00:02]} Rc8 {[%emt 0:00:10]} 34. Bc2 {[%emt 0:17:05]} Bd8 {[%emt 0:01:31]} 35. Nxb7 {[%emt 0:00:22]} Qxb7 {[%emt 0:00:11]} 36. Bxa4 {[%emt 0:00:06]} bxa4 {[%emt 0:00:58]} 37. Rxc8 {[%emt 0:00:30]} Qxc8 {[%emt 0:00:02]} 38. Qd3 {[%emt 0:00:04]} Bg5 {[%emt 0:02:21]} 39. Bxg5 {[%emt 0:00:49]} Nxg5 {[%emt 0:00:02]} 40. Ne2 {[%emt 0:00:05]} a3 {[%emt 0:04:43]} 41. Qc3 {[%emt 0:02:04]} Qb7 {[%emt 0:02:31]} 42. Qc4 {[%emt 0:01:00]} Qb6 {[%emt 0:00:50]} 43. Kf1 {[%emt 0:00:35]} Kg7 {[%emt 0:02:09]} 44. f3 {[%emt 0:06:16]} f6 {[%emt 0:05:50]} 45. Qc3 {[%emt 0:00:28]} Qb5 {[%emt 0:01:02]} 46. Qxa3 {[%emt 0:00:37]} f5 {[%emt 0:00:18]} 47. Qe3 {[%emt 0:01:43]} Nf7 {[%emt 0:00:50]} 48. exf5 {[%emt 0:02:12]} gxf5 {[%emt 0:00:06]} 49. Qb3 {[%emt 0:00:30]} f4 {[%emt 0:02:10]} 50. a4 {[%emt 0:02:32]} Qb6 {[%emt 0:00:30]} 51. Qc3 {[%emt 0:01:08]} Kg6 {[%emt 0:01:55]} 52. Qd3+ {[%emt 0:03:13]} Kf6 {[%emt 0:00:28]} 53. b5 {[%emt 0:00:54]} axb5 {[%emt 0:00:04]} 54. axb5 {[%emt 0:00:26]} Nh6 {[%emt 0:00:37]} 55. g4 {[%emt 0:00:20]} fxg3 {[%emt 0:00:28]} 56. Nxg3 {[%emt 0:00:01]} h4 {[%emt 0:01:05]} 57. Ne4+ {[%emt 0:00:44]} Ke7 {[%emt 0:00:55]} 58. Nd2 {[%emt 0:01:09]} Nf7 {[%emt 0:01:15]} 59. Kg2 {[%emt 0:03:38]} Qa5 {[%emt 0:01:46]} 60. Ne4 {[%emt 0:00:45]} Qa2+ {[%emt 0:01:31]} 61. Kf1 {[%emt 0:01:42]} Qa1+ {[%emt 0:00:17]} 62. Ke2 {[%emt 0:00:11]} Qb2+ {[%emt 0:00:05]} 63. Nd2 {[%emt 0:00:08]} Kf8 {[%emt 0:01:52]} 64. Qb3 {[%emt 0:01:24]} Qxb3 {[%emt 0:00:19]} 65. Nxb3 {[%emt 0:00:01]} Ke7 {[%emt 0:00:04]} 66. Kf2 {[%emt 0:02:18]} Kd7 {[%emt 0:00:08]} 67. b6 {[%emt 0:00:35]} Ng5 {[%emt 0:00:33]} 68. Kg2 {[%emt 0:00:05]} Nh7 {[%emt 0:00:06]} 69. Na5 {[%emt 0:03:12]} Nf6 {[%emt 0:00:07]} 70. Nc4 {[%emt 0:04:43]} Nxd5 {[%emt 0:00:23]} 71. b7 {[%emt 0:00:01]} Kc7 {[%emt 0:00:09]} 72. Nxd6 {[%emt 0:00:03]} Nf4+ {[%emt 0:00:07]} 73. Kh2 {[%emt 0:00:05]} Ng6 {[%emt 0:00:08]} 74. Kg1 {[%emt 0:01:54]} Nf4 {[%emt 0:00:11]} 75. Kh2 {[%emt 0:00:28]} Ng6 {[%emt 0:00:01]} 76. Kg1 {[%emt 0:01:17]} Nf4 {[%emt 0:00:01]} 1/2-1/2

[Event "EYCC O18-ch 2024"]
[Site "Prague"]
[Date "2024.08.31"]
[Round "9.4"]
[White "Belkaid, Sohan"]
[Black "Stalmach, Richard"]
[Result "1-0"]
[ECO "B94"]
[WhiteElo "2384"]
[BlackElo "2443"]
[Annotator "RC"]
[PlyCount "83"]
[EventDate "2024.08.19"]
[EventType "swiss"]
[EventCountry "CZE"]
[SourceTitle "playchess.com"]
[Source "ChessBase"]
[SourceQuality "1"]
[TimeControl "5400+30"]

1. e4 {[%emt 0:00:07]} c5 {[%emt 0:00:04]} 2. Nf3 {[%emt 0:00:10]} d6 {[%emt 0:00:05]} 3. d4 {[%emt 0:00:11]} cxd4 {[%emt 0:00:03]} 4. Nxd4 {[%emt 0:00:09]} Nf6 {[%emt 0:00:03]} 5. Nc3 {[%emt 0:00:12]} a6 {[%emt 0:00:05]} 6. Bg5 {[%emt 0:01:01]} Nbd7 {[%emt 0:00:12]} 7. a3 {[%emt 0:00:35]} h6 {[%emt 0:03:29]} 8. Be3 {[%emt 0:00:19]} Qc7 {[%emt 0:02:29]} 9. Qd2 {[%emt 0:02:48]} e6 {[%emt 0:06:32]} 10. f3 {[%emt 0:00:42]} b5 {[%emt 0:03:45]} 11. O-O-O {[%emt 0:00:24]} Bb7 {[%emt 0:04:50]} 12. Kb1 {[%emt 0:00:32]} Be7 {[%emt 0:00:27]} 13. Be2 {[%emt 0:01:10]} O-O {[%emt 0:31:26]} 14. g4 {[%emt 0:02:09]} d5 {[%emt 0:00:52]} 15. h4 {[%emt 0:01:52]} dxe4 {[%emt 0:04:12]} 16. g5 {[%emt 0:01:23]} Nd5 {[%emt 0:07:41]} 17. Nxd5 {[%emt 0:18:21]} Bxd5 {[%emt 0:00:05]} 18. gxh6 {[%emt 0:00:16]} g6 {[%emt 0:00:03]} 19. h5 {[%emt 0:13:31]} Rac8 {[%emt 0:10:21]} 20. Rhg1 {[%emt 0:14:11]} Kh7 {[%emt 0:03:14]} 21. fxe4 {[%emt 0:06:25]} Bxe4 {[%emt 0:00:12]} 22. Bd3 {[%emt 0:00:30]} Bxd3 {[%emt 0:15:45]} 23. Qxd3 {[%emt 0:00:11]} Ne5 {[%emt 0:00:34]} 24. hxg6+ {[%emt 0:01:10]} fxg6 {[%emt 0:00:26]} 25. Qe4 {[%emt 0:00:41]} Rf6 {[%emt 0:01:45]} 26. Bg5 {[%emt 0:04:01]} Rf5 {[%emt 0:01:13]} 27. Bxe7 {[%emt 0:04:40]} Qxe7 {[%emt 0:00:03]} 28. Nxf5 {[%emt 0:01:02]} exf5 {[%emt 0:00:01]} 29. Qe2 {[%emt 0:01:03]} Qf6 {[%emt 0:00:12]} 30. Rge1 {[%emt 0:01:26]} Nf7 {[%emt 0:01:53]} 31. Qe7 {[%emt 0:01:00]} Rc6 {[%emt 0:02:47]} 32. Rd7 {[%emt 0:01:54]} Qxe7 {[%emt 0:00:10]} 33. Rexe7 {[%emt 0:00:07]} Kxh6 {[%emt 0:00:04]} 34. Rxf7 {[%emt 0:00:07]} Rc4 {[%emt 0:01:10]} 35. Rf6 {[%emt 0:00:51]} Rg4 {[%emt 0:00:33]} 36. Rd5 {[%emt 0:01:06]} Kg5 {[%emt 0:01:11]} 37. Rdd6 {[%emt 0:00:07]} Kh5 {[%emt 0:00:07]} 38. Rxa6 {[%emt 0:00:22]} f4 {[%emt 0:00:05]} 39. Rab6 {[%emt 0:00:16]} Rg1+ {[%emt 0:00:05]} 40. Ka2 {[%emt 0:00:05]} g5 {[%emt 0:00:02]} 41. Rxb5 {[%emt 0:00:16]} Kh4 {[%emt 0:00:24]} 42. a4 {[%emt 0:00:18]} 1-0

[Event "EYCC O18-ch 2024"]
[Site "Prague"]
[Date "2024.08.31"]
[Round "9.5"]
[White "Smolik, Jachym"]
[Black "Piliposyan, Robert"]
[Result "1/2-1/2"]
[ECO "A13"]
[WhiteElo "2290"]
[BlackElo "2376"]
[Annotator "RC"]
[PlyCount "89"]
[EventDate "2024.08.19"]
[EventType "swiss"]
[EventCountry "CZE"]
[SourceTitle "playchess.com"]
[Source "ChessBase"]
[SourceQuality "1"]
[TimeControl "5400+30"]

1. c4 {[%emt 0:00:01]} e6 {[%emt 0:00:16]} 2. Nc3 {[%emt 0:00:19]} d5 {[%emt 0:00:04]} 3. e3 {[%emt 0:00:06]} Nf6 {[%emt 0:01:35]} 4. Nf3 {[%emt 0:00:07]} Nbd7 {[%emt 0:05:09]} 5. b3 {[%emt 0:00:24]} b6 {[%emt 0:06:42]} 6. cxd5 {[%emt 0:00:52]} exd5 {[%emt 0:01:09]} 7. Bb2 {[%emt 0:00:31]} Bb7 {[%emt 0:00:34]} 8. Ne2 {[%emt 0:01:32]} c5 {[%emt 0:10:56]} 9. Ng3 {[%emt 0:01:18]} g6 {[%emt 0:02:53]} 10. Rc1 {[%emt 0:04:32]} Bg7 {[%emt 0:01:20]} 11. d4 {[%emt 0:01:28]} O-O {[%emt 0:01:15]} 12. Be2 {[%emt 0:02:22]} Qe7 {[%emt 0:02:22]} 13. O-O {[%emt 0:00:28]} Ne4 {[%emt 0:02:26]} 14. Rc2 {[%emt 0:02:18]} f5 {[%emt 0:02:14]} 15. Bb5 {[%emt 0:03:23]} Rac8 {[%emt 0:11:23]} 16. Ne2 {[%emt 0:05:46]} a6 {[%emt 0:04:36]} 17. Bxd7 {[%emt 0:01:03]} Qxd7 {[%emt 0:00:15]} 18. Nf4 {[%emt 0:00:39]} Rfe8 {[%emt 0:06:02]} 19. h4 {[%emt 0:09:19]} c4 {[%emt 0:03:39]} 20. Ne5 {[%emt 0:06:16]} Qb5 {[%emt 0:06:49]} 21. f3 {[%emt 0:06:02]} Nd6 {[%emt 0:02:37]} 22. Ba3 {[%emt 0:14:04]} Nf7 {[%emt 0:03:58]} 23. bxc4 {[%emt 0:02:54]} Qa4 {[%emt 0:02:43]} 24. Bb2 {[%emt 0:02:00]} dxc4 {[%emt 0:03:37]} 25. h5 {[%emt 0:02:20]} g5 {[%emt 0:06:47]} 26. Ne2 {[%emt 0:00:24]} Qxa2 {[%emt 0:02:38]} 27. Ng3 {[%emt 0:04:41]} Nxe5 {[%emt 0:01:47]} 28. dxe5 {[%emt 0:00:01]} c3 {[%emt 0:00:17]} 29. Bxc3 {[%emt 0:01:37]} Qe6 {[%emt 0:01:24]} 30. f4 {[%emt 0:02:28]} gxf4 {[%emt 0:01:37]} 31. exf4 {[%emt 0:00:09]} Bf8 {[%emt 0:02:24]} 32. Kh2 {[%emt 0:05:03]} Red8 {[%emt 0:00:20]} 33. Rd2 {[%emt 0:04:54]} Rxd2 {[%emt 0:02:28]} 34. Qxd2 {[%emt 0:00:01]} Rc7 {[%emt 0:00:34]} 35. Bb4 {[%emt 0:05:03]} Rd7 {[%emt 0:00:38]} 36. Qb2 {[%emt 0:00:01]} Bxb4 {[%emt 0:00:52]} 37. Qxb4 {[%emt 0:00:02]} Qa2 {[%emt 0:00:17]} 38. Rg1 {[%emt 0:05:03]} Rd2 {[%emt 0:00:14]} 39. Nxf5 {[%emt 0:00:42]} Rxg2+ {[%emt 0:01:36]} 40. Kh3 {[%emt 0:00:02]} Rxg1 {[%emt 0:01:28]} 41. Nh6+ {[%emt 0:00:07]} Kg7 {[%emt 0:00:04]} 42. Nf5+ {[%emt 0:02:12]} Kg8 {[%emt 0:00:03]} 43. Nh6+ {[%emt 0:00:04]} Kg7 {[%emt 0:00:03]} 44. Nf5+ {[%emt 0:00:13]} Kg8 {[%emt 0:01:03]} 45. Nh6+ {[%emt 0:00:07]} 1/2-1/2

[Event "EYCC O18-ch 2024"]
[Site "Prague"]
[Date "2024.08.31"]
[Round "9.6"]
[White "Sokolovsky, Yahli"]
[Black "Gasparyan, Erik R."]
[Result "1/2-1/2"]
[ECO "C80"]
[WhiteElo "2522"]
[BlackElo "2350"]
[Annotator "RC"]
[PlyCount "84"]
[EventDate "2024.08.19"]
[EventType "swiss"]
[EventCountry "CZE"]
[SourceTitle "playchess.com"]
[Source "ChessBase"]
[SourceQuality "1"]
[TimeControl "5400+30"]

1. e4 {[%emt 0:00:04]} e5 {[%emt 0:00:29]} 2. Nf3 {[%emt 0:00:04]} Nc6 {[%emt 0:00:10]} 3. Bb5 {[%emt 0:00:03]} a6 {[%emt 0:00:18]} 4. Ba4 {[%emt 0:00:04]} Nf6 {[%emt 0:00:46]} 5. O-O {[%emt 0:00:09]} Nxe4 {[%emt 0:00:07]} 6. d4 {[%emt 0:00:12]} Be7 {[%emt 0:00:04]} 7. Re1 {[%emt 0:00:28]} b5 {[%emt 0:00:04]} 8. Rxe4 {[%emt 0:00:06]} d5 {[%emt 0:00:04]} 9. Nxe5 {[%emt 0:00:08]} Nxe5 {[%emt 0:00:07]} 10. Rxe5 {[%emt 0:00:04]} bxa4 {[%emt 0:00:03]} 11. Qe2 {[%emt 0:00:09]} Be6 {[%emt 0:00:37]} 12. f4 {[%emt 0:00:24]} Kf8 {[%emt 0:00:30]} 13. f5 {[%emt 0:07:09]} Bd7 {[%emt 0:00:05]} 14. b3 {[%emt 0:06:31]} Bf6 {[%emt 0:01:08]} 15. Ba3+ {[%emt 0:43:23]} Kg8 {[%emt 0:00:06]} 16. Be7 {[%emt 0:00:11]} Bxe7 {[%emt 0:00:04]} 17. Rxe7 {[%emt 0:00:07]} Be6 {[%emt 0:00:30]} 18. Rxe6 {[%emt 0:00:20]} fxe6 {[%emt 0:00:04]} 19. Qxe6+ {[%emt 0:00:37]} Kf8 {[%emt 0:00:03]} 20. Nc3 Qd6 {[%emt 0:22:04]} 21. Nxd5 {[%emt 0:02:59]} Re8 {[%emt 0:13:39]} 22. Qxd6+ {[%emt 0:00:07]} cxd6 {[%emt 0:00:02]} 23. bxa4 {[%emt 0:01:39]} g6 {[%emt 0:31:18]} 24. Rb1 {[%emt 0:17:40]} gxf5 {[%emt 0:01:41]} 25. Rb7 {[%emt 0:02:01]} Re2 {[%emt 0:06:03]} 26. Nf4 {[%emt 0:00:26]} Re7 {[%emt 0:04:15]} 27. Rb8+ {[%emt 0:04:13]} Re8 {[%emt 0:00:06]} 28. Rb7 {[%emt 0:00:03]} Re7 {[%emt 0:03:21]} 29. Rb8+ {[%emt 0:06:57]} Re8 {[%emt 0:00:04]} 30. Rb6 {[%emt 0:00:04]} Re4 {[%emt 0:02:17]} 31. g3 {[%emt 0:00:52]} Kf7 {[%emt 0:02:49]} 32. c3 {[%emt 0:05:08]} Rc8 {[%emt 0:03:07]} 33. Rb7+ Re7 {[%emt 0:02:43]} 34. Rb3 {[%emt 0:00:06]} Rc4 {[%emt 0:01:22]} 35. Nd5 {[%emt 0:00:01]} Re2 {[%emt 0:00:40]} 36. Rb7+ {[%emt 0:00:02]} Kf8 {[%emt 0:00:17]} 37. Rb8+ Re8 {[%emt 0:01:29]} 38. Rb2 {[%emt 0:02:04]} Rxa4 {[%emt 0:01:13]} 39. Kf2 {[%emt 0:00:19]} Kg7 {[%emt 0:01:46]} 40. Kf3 {[%emt 0:00:31]} Ra5 {[%emt 0:01:17]} 41. Rb7+ {[%emt 0:00:02]} Kg6 {[%emt 0:01:16]} 42. Nf4+ {[%emt 0:00:37]} Kh6 {[%emt 0:00:22]} 1/2-1/2

[Event "EYCC O18-ch 2024"]
[Site "Prague"]
[Date "2024.08.31"]
[Round "9.7"]
[White "Malek, Jan"]
[Black "Talibov, Shiroghlan"]
[Result "1/2-1/2"]
[ECO "E46"]
[WhiteElo "2482"]
[BlackElo "2395"]
[Annotator "RC"]
[PlyCount "59"]
[EventDate "2024.08.19"]
[EventType "swiss"]
[EventCountry "CZE"]
[SourceTitle "playchess.com"]
[Source "ChessBase"]
[SourceQuality "1"]
[TimeControl "5400+30"]

1. d4 {[%emt 0:00:01]} Nf6 {[%emt 0:00:05]} 2. c4 {[%emt 0:00:05]} e6 {[%emt 0:00:03]} 3. Nc3 {[%emt 0:00:06]} Bb4 {[%emt 0:00:06]} 4. e3 {[%emt 0:00:04]} O-O {[%emt 0:00:07]} 5. Bd2 c5 {[%emt 0:04:47]} 6. a3 {[%emt 0:00:25]} Bxc3 {[%emt 0:00:05]} 7. Bxc3 {[%emt 0:00:05]} Ne4 {[%emt 0:00:03]} 8. Ne2 {[%emt 0:00:08]} b6 {[%emt 0:00:47]} 9. d5 {[%emt 0:00:07]} Ba6 {[%emt 0:00:30]} 10. b3 {[%emt 0:01:49]} b5 {[%emt 0:00:22]} 11. Qc2 {[%emt 0:00:06]} exd5 {[%emt 0:00:15]} 12. cxd5 {[%emt 0:00:17]} Nxc3 {[%emt 0:00:04]} 13. Qxc3 {[%emt 0:01:07]} d6 {[%emt 0:01:42]} 14. Ng3 {[%emt 0:00:06]} Nd7 {[%emt 0:00:51]} 15. Be2 {[%emt 0:00:07]} Nf6 {[%emt 0:01:01]} 16. Qd2 {[%emt 0:00:06]} g6 {[%emt 0:01:17]} 17. e4 {[%emt 0:10:57]} Re8 {[%emt 0:01:10]} 18. f3 {[%emt 0:00:51]} c4 {[%emt 0:08:13]} 19. b4 {[%emt 0:08:54]} Qb6 {[%emt 0:08:19]} 20. h4 {[%emt 0:15:32]} h5 {[%emt 0:00:45]} 21. Nf5 {[%emt 0:02:56]} Re5 {[%emt 0:10:20]} 22. Qh6 {[%emt 0:11:49]} gxf5 {[%emt 0:15:36]} 23. Qxf6 {[%emt 0:01:18]} fxe4 {[%emt 0:03:26]} 24. fxe4 {[%emt 0:07:15]} Qe3 {[%emt 0:19:47]} 25. Rf1 {[%emt 0:01:13]} Qc3+ {[%emt 0:07:04]} 26. Kf2 {[%emt 0:00:41]} Rf8 {[%emt 0:02:19]} 27. Bf3 Qd4+ 28. Kg3 Rxd5 29. Qxd4 Rxd4 30. Rad1 1/2-1/2